Cogmind - Beta 16 @@@ ROGUE MODE // 2025.12.27 @ 14:14:19 Player: SilentMoose Result: Destroyed by G-47 Trooper with Particle Gun Performance ------------- Evolutions (2) 1000 Regions Visited (4) 800 Robots Destroyed (14) 70 Value Destroyed (418) 418 Prototype IDs (0) 0 Alien Tech Used (0) 0 Bonus (200) 200 TOTAL SCORE: 2488 Bonus ------- Pacifist 200 Cogmind --------- Core Integrity 0/550 Matter 10/300 Energy 99/100 System Corruption 0% Temperature Cool (18) Movement Core (50) Location -8/Materials Parts ------- > --- POWER (2) -------- (None) > --- PROPULSION (4) --- (None) > --- UTILITY (2) ------ (None) > --- WEAPON (3) ------- (None) > --- INVENTORY (5) ---- Compact Wheel Small Storage Unit Peak State ------------ > --- POWER ------------ Ion Engine > --- PROPULSION ------- Advanced Treads Advanced Treads Advanced Treads Advanced Treads > --- UTILITY ---------- Small Storage Unit Medium Armor Plating > --- WEAPON ----------- Assault Rifle Rocket Launcher > --- INVENTORY -------- Compact Wheel [Rating: 19] Favorites ----------- Power Light Ion Engine Engine Light Ion Engine Propulsion Aluminum Leg Treads Advanced Treads Leg Aluminum Leg Wheel Compact Wheel Utility Small Storage Unit Device Terrain Scanner Storage Small Storage Unit Protection Medium Armor Plating Weapon Assault Rifle Energy Gun Medium Laser Ballistic Gun Assault Rifle Ballistic Cannon Assault Cannon Launcher Rocket Launcher Special Weapon Plasma Cutter Build | -11 -10 -10 -9 -8 ------- Run | Yrd Mat Min Mat Mat Slots Evolved 4 | . . . 2 2 Power 1 | . . . . 1 Propulsion 2 | . . . 2 . Utility . | . . . . . Weapon 1 | . . . . 1 Parts Attached 29 | 6 1 1 4 17 Power 4 | 1 . . 1 2 Engine 4 | 1 . . 1 2 Core . | . . . . . Reactor . | . . . . . Propulsion 10 | 2 . . 3 5 Treads 6 | . . . 2 4 Leg 2 | 2 . . . . Wheel 2 | . . . 1 1 Hover . | . . . . . Flight . | . . . . . Utility 5 | 1 1 1 . 2 Device 3 | . 1 1 . 1 Storage 1 | 1 . . . . Processor . | . . . . . Hackware . | . . . . . Protection 1 | . . . . 1 Artifact . | . . . . . Weapon 10 | 2 . . . 8 Energy Gun 1 | . . . . 1 Energy Cannon . | . . . . . Ballistic Gun 3 | 2 . . . 1 Ballistic Cannon 1 | . . . . 1 Launcher 4 | . . . . 4 Special Weapon 1 | . . . . 1 Impact Weapon . | . . . . . Slashing Weapon . | . . . . . Piercing Weapon . | . . . . . Special Melee Weapon . | . . . . . Unidentified Prototypes . | . . . . . Parts Lost 26 | . . . 5 21 Power 4 | . . . 1 3 Propulsion 9 | . . . 2 7 Utility 3 | . . . 1 2 Weapon 10 | . . . 1 9 Highest Loss Streak 13 | . . . 4 13 To Critical Strikes 1 | . . . 1 . Average Backups 4 | 3 7 8 5 1 Power . | . 1 2 1 . Propulsion 2 | 2 4 4 2 . Utility . | . . . . . Weapon 1 | . 1 2 2 . Tool/Special . | . . . . . Unused Backups . | . . . . . Power . | . . . . . Propulsion . | . . . . . Utility . | . . . . . Weapon . | . . . . . Tool/Special . | . . . . . Average Slot Usage (%) 77 | . 91 100 92 58 Engine 11 | . 14 14 11 9 Treads 12 | . . . 21 14 Leg 14 | . 28 28 22 3 Wheel 1 | . . . . 4 Device 4 | . 5 14 5 1 Storage 10 | . 14 14 11 8 Energy Gun 1 | . . . . 3 Ballistic Gun 16 | . 28 28 20 7 Launcher 2 | . . . . 4 Peak Build Rating 19 | 6 7 7 9 19 Average Rating 8 | 4 6 6 8 11 On Entrance 5 | . 6 7 7 6 Avg Prop Armor Cover (%) 13 | 18 . . 15 5 Naked Turns 11 | . . . . 11 Heaviest Build 29 | 12 13 13 13 29 Greatest Support 88 | 20 20 20 20 88 Greatest Overweight (x) 7 | 2 . . . 7 Average Overweight (x) . | . . . . . Largest Inventory Capacity 8 | 8 8 8 8 8 Average Capacity 7 | 7 8 8 8 7 Most Carried 8 | 7 8 8 7 3 Average Carried 4 | 4 7 8 5 1 Final Capacity 8 | 8 8 8 8 5 Final Carried 8 | 6 8 8 4 2 Class Distribution -------------------- 76% | Mutant 23% | Gunner Dominant Class ---------------- Mutant | -10/Materials Mutant | -10/Mines Mutant | -9/Materials Gunner | -8/Materials Resources | -11 -10 -10 -9 -8 ----------- Run | Yrd Mat Min Mat Mat Matter Collected 336 | 216 . 51 . 69 Remotely . | . . . . . Salvage Created 276 | . . . 12 264 Parts 20 | . . . 1 19 Haulers Intercepted . | . . . . . Recyclers Shooed . | . . . . . Parts Field Recycled . | . . . . . Retrieved Matter . | . . . . . Parts Self-Destructed . | . . . . . Prevented . | . . . . . Parts Restored . | . . . . . Kills | -11 -10 -10 -9 -8 ------- Run | Yrd Mat Min Mat Mat Combat Hostiles Destroyed 9 | . . . 1 8 Guns 2 | . . . 1 1 Cannons 1 | . . . . 1 AOE 6 | . . . . 6 Classes Destroyed 6 | . . . 1 5 Worker 2 | . . . . 2 Builder 2 | . . . . 2 Mechanic 1 | . . . . 1 Swarmer 1 | . . . 1 . Grunt 5 | . . . . 5 Sentry 3 | . . . . 3 Best Kill Streak 9 | . . . 1 9 Combat Bots Only 6 | . . . 1 6 Max Kills in Single Turn 3 | . . . 1 3 Gunslinging . | . . . . . Exploded 2 | . . . . 2 Melee . | . . . . . Uniques/NPCs Destroyed . | . . . . . Combat | -11 -10 -10 -9 -8 -------- Run | Yrd Mat Min Mat Mat Hostile Shots Fired 401 | . 12 . 185 204 Missed 163 | . 4 . 96 63 Hits 238 | . 8 . 89 141 Projectile 238 | . 8 . 89 141 Critical Strikes 12 | . . . 2 10 Damage Taken 3127 | . 100 . 716 2311 Core 624 | . 11 . 52 561 Absorbed by Shields . | . . . . . Core Remaining (%) 94 | 100 . 95 87 . Volleys Fired 23 | . . . 3 20 Largest 3 | . . . 2 3 Hottest 103 | . . . 40 103 Shots Fired 52 | . . . 6 46 Gun 25 | . . . 6 19 Cannon 5 | . . . . 5 Launcher 22 | . . . . 22 Special . | . . . . . Kinetic 22 | . . . 6 16 Thermal 8 | . . . . 8 Explosive 22 | . . . . 22 Electromagnetic . | . . . . . Robot Hit Streak 8 | . . . 1 8 Robot Miss Streak 4 | . . . 4 2 Penetration Max . | . . . . . Secondary Targets . | . . . . . Shots Hit Robots 30 | . . . 1 29 Core Hits 30 | . . . 1 29 Critical Kills . | . . . . . Critical Parts Destroyed . | . . . . . Critical Strikes 1 | . . . . 1 Blast 1 | . . . . 1 Melee Attacks . | . . . . . Impact . | . . . . . Slashing . | . . . . . Piercing . | . . . . . Sneak Attacks . | . . . . . Combat Hostiles . | . . . . . Follow-up Attacks . | . . . . . Damage Inflicted 1366 | . 3 . 13 1350 Guns 191 | . . . 13 178 Cannons 77 | . . . . 77 Explosions 1061 | . . . . 1061 Melee . | . . . . . Ramming 37 | . 3 . . 34 Kinetic 205 | . . . 13 192 Thermal 63 | . . . . 63 Explosive 1061 | . . . . 1061 Electromagnetic . | . . . . . Impact . | . . . . . Slashing . | . . . . . Piercing . | . . . . . Highest Corruption . | . . . . . Average Corruption . | . . . . . Corruption Purged . | . . . . . Corruption Blocked . | . . . . . Overload Shots . | . . . . . Overflow Damage 22 | . . . . 22 Projectiles . | . . . . . Explosions 22 | . . . . 22 Melee . | . . . . . Knockbacks . | . . . . . Impact . | . . . . . Kinetic . | . . . . . Secondary . | . . . . . Self-Inflicted Damage 110 | . . . . 110 Shots 6 | . . . . 6 Rammed 18 | . . . . 18 Targets Rammed 19 | . 1 . . 18 Kicked 1 | . 1 . . . Crushed . | . . . . . Highest Temperature 185 | . . . . 185 Average Temperature 54 | . . . . 54 Received Heat Transfer 1026 | . 60 . 30 936 Siege Activations . | . . . . . Martial Activations . | . . . . . Shielding Activations . | . . . . . Robots Disrupted . | . . . . . Combat Hostiles . | . . . . . Robots Corrupted . | . . . . . Combat Hostiles . | . . . . . Parts Fried . | . . . . . Impact Corruptions . | . . . . . Robots Melted . | . . . . . Combat Hostiles . | . . . . . Parts Melted . | . . . . . Heat Transferred 185 | . . . . 185 Parts Sabotaged . | . . . . . Parts Stolen . | . . . . . Parts Stripped . | . . . . . Power Chain Reactions . | . . . . . Alert | -11 -10 -10 -9 -8 ------- Run | Yrd Mat Min Mat Mat Maximum Alert Level . | . . . . . Low Security (%) 100 | 100 100 100 100 100 Level 1 . | . . . . . Level 2 . | . . . . . Level 3 . | . . . . . Level 4 . | . . . . . Level 5 . | . . . . . High Security . | . . . . . Max Security . | . . . . . Peak Influence 169 | . . . 40 169 Initial 3 | . . . . 3 Average 22 | . . . 14 46 Influence Increases 439 | . . . 120 319 Destroy 0b10 Robot/C 180 | . . . 20 160 Destroy 0b10 Robot/NC 25 | . . . . 25 Destroy Leader 50 | . . . 10 40 Disable Machine 15 | . . . . 15 Destroy Structure 79 | . . . . 79 Lose Combat Pursuer 90 | . . . 90 . Influence Decreases 368 | . . . 110 258 Entered New Map 7 | . . . . 7 Time Decay 153 | . . . 60 93 Lost Part 208 | . . . 50 158 Squads Dispatched 4 | . 1 . 1 2 Investigation 1 | . 1 . . . Extermination . | . . . . . Reinforcement 3 | . . . 1 2 Assault . | . . . . . Garrison . | . . . . . Intercept . | . . . . . Searches Triggered . | . . . . . Construction Impeded . | . . . . . Haulers Reinforced . | . . . . . Active Scanning Responses . | . . . . . Cargo Convoy Interrupts . | . . . . . Stealth | -11 -10 -10 -9 -8 --------- Run | Yrd Mat Min Mat Mat Distress Signals 3 | . 1 . . 2 Communications Jammed . | . . . . . Distress Signals . | . . . . . Times Spotted 48 | . 5 . 18 25 Peak Tracking Total 13 | . 8 . 8 13 Tactical Retreats 3 | . . . 3 . Traps | -11 -10 -10 -9 -8 ------- Run | Yrd Mat Min Mat Mat Traps Triggered 1 | . 1 . . . Indirectly . | . . . . . Trap Hack Attempts . | . . . . . Triggered . | . . . . . Disarmed . | . . . . . Reprogrammed . | . . . . . Reused . | . . . . . Traps Extracted . | . . . . . Installed . | . . . . . Triggered . | . . . . . Machines | -11 -10 -10 -9 -8 ---------- Run | Yrd Mat Min Mat Mat Machines Disabled 1 | . . . . 1 Max in Single Turn 1 | . . . . 1 Machines Repaired . | . . . . . Machines Dismantled . | . . . . . Machines Sabotaged . | . . . . . Overloaded Fab Kills . | . . . . . Hacking | -11 -10 -10 -9 -8 --------- Run | Yrd Mat Min Mat Mat Machines Accessed . | . . . . . Terminals . | . . . . . Fabricators . | . . . . . Repair Stations . | . . . . . Recycling Units . | . . . . . Scanalyzers . | . . . . . Garrison Access . | . . . . . Total Hacks . | . . . . . Successful . | . . . . . Failed . | . . . . . Catastrophic . | . . . . . Database Lockouts . | . . . . . Manual . | . . . . . Terminals . | . . . . . Fabricators . | . . . . . Repair Stations . | . . . . . Recycling Units . | . . . . . Scanalyzers . | . . . . . Garrison Access . | . . . . . Terminal Hacks . | . . . . . Fabricator Hacks . | . . . . . Repair Station Hacks . | . . . . . Recycling Unit Hacks . | . . . . . Scanalyzer . | . . . . . Garrison Access Hacks . | . . . . . Unauthorized Hacks . | . . . . . Terminals . | . . . . . Fabricators . | . . . . . Repair Stations . | . . . . . Recycling Units . | . . . . . Scanalyzers . | . . . . . Garrison Access . | . . . . . Data Cores Recovered . | . . . . . Used . | . . . . . Hacking Detections . | . . . . . Full Trace Events . | . . . . . Feedback Events . | . . . . . Feedback Blocked . | . . . . . Robot Schematics Acquired . | . . . . . Robots Built . | . . . . . Authchips . | . . . . . Time . | . . . . . Total Robot Build Rating . | . . . . . Part Schematics Acquired . | . . . . . Parts Built . | . . . . . Authchips . | . . . . . Time . | . . . . . Total Part Build Rating . | . . . . . Part Studies Acquired . | . . . . . Parts Repaired . | . . . . . Time . | . . . . . Parts Recycled . | . . . . . Recycled Matter . | . . . . . Retrieved Matter . | . . . . . Retrieved Components . | . . . . . Parts Scanalyzed . | . . . . . Part Schematics Acquired . | . . . . . Parts Damaged . | . . . . . Bothacking | -11 -10 -10 -9 -8 ------------ Run | Yrd Mat Min Mat Mat Used RIF Installer . | . . . . . Robots Hacked . | . . . . . Non-combat . | . . . . . Combat . | . . . . . Robot Hacks Applied . | . . . . . Relay Couplers Released . | . . . . . Fabnet Peak Effective % . | . . . . . Robots Rewired . | . . . . . Allies Hacked . | . . . . . Hacks Repelled . | . . . . . Allies | -11 -10 -10 -9 -8 -------- Run | Yrd Mat Min Mat Mat Total Allies . | . . . . . Largest Group . | . . . . . Highest-Rated Group . | . . . . . Highest-Rated Ally . | . . . . . Total Orders . | . . . . . Ally Attacks . | . . . . . Total Damage . | . . . . . Kills . | . . . . . Allies Corrupted . | . . . . . Allies Melted . | . . . . . Intel | -11 -10 -10 -9 -8 ------- Run | Yrd Mat Min Mat Mat Active Infowar (turns) 176 | . 51 42 83 . Terrain 90 | . 51 39 . . Seismic 86 | . . 3 83 . Robot Analysis Total . | . . . . . Derelict Logs Recovered . | . . . . . Drone Launches . | . . . . . Drone Recoveries . | . . . . . Exploration | -11 -10 -10 -9 -8 ------------- Run | Yrd Mat Min Mat Mat Turns Passed 689 | 68 115 45 177 284 Spaces Moved 445 | 45 91 31 137 141 Core 83 | 23 . . . 60 Treads 47 | . . . . 47 Legs 315 | 22 91 31 137 34 Wheels . | . . . . . Hover . | . . . . . Flight . | . . . . . Fastest Speed 50 | 50 120 120 120 50 Average Speed 120 | 117 120 120 120 123 Slowest Speed 400 | 150 120 120 120 400 Overloaded Moves . | . . . . . Propulsion Burnouts . | . . . . . Robots Hopped . | . . . . . Potential Cave-ins . | . . . . . Cave-ins Triggered . | . . . . . Exploration Rate (%) 17 | 4 30 8 26 19 Regions Visited 4 Branch Regions 1 Pre-discovered Areas . | . . . . . Known Exits Taken . | . . . . . Unknown Exits Taken 4 | 1 1 1 1 . Scrap Searched 1 | . . 1 . . Spaces Dug . | . . . . . Terrain Destroyed 106 | . . . . 106 Melee . | . . . . . Projectile 1 | . . . . 1 AOE 105 | . . . . 105 Terrain Rammed . | . . . . . Walls Destroyed . | . . . . . Machines Disabled . | . . . . . Actions | -11 -10 -10 -9 -8 --------- Run | Yrd Mat Min Mat Mat Total 536 | 57 96 39 143 201 Wait 9 | . 2 7 . . Move 441 | 44 90 30 136 141 Hop . | . . . . . Pick Up 11 | 7 2 . . 2 Fast Attach 18 | 5 1 1 . 11 Attach 11 | 1 . . 4 6 Detach 2 | . . . . 2 Swap 1 | . . . . 1 Drop 1 | . . 1 . . Fire 23 | . . . 3 20 Melee . | . . . . . Ram . | . . . . . Kick 1 | . 1 . . . Crush 18 | . . . . 18 Escape Stasis . | . . . . . Rewire . | . . . . . Trap . | . . . . . Miscellaneous . | . . . . . Route ------- -11/Scrapyard -10/Materials -10/Mines -9/Materials -8/Materials History --------- Turn | Location | Event 7 | -11/Scrapyard | Discovered new exit (range 15) 69 | -11/Scrapyard | Entered Materials 178 | -10/Materials | Discovered new exit (range 6) 184 | -10/Materials | Entered Mines 204 | -10/Mines | Discovered new exit (range 9) 229 | -10/Mines | Entered Materials 229 | -9/Materials | Evolved 2 slots: Propulsion x2 308 | -9/Materials | Build established: Mutant 387 | -9/Materials | Discovered new exit (range 15) 406 | -9/Materials | Entered another Materials area 406 | -8/Materials | Evolved 2 slots: Power x1, Weapon x1 436 | -8/Materials | Lost 4 parts (1p2n1w) 518 | -8/Materials | Lost 5 parts (1p3n1w) 577 | -8/Materials | Lost 3 parts (3w) 620 | -8/Materials | Core integrity fell below 50% 644 | -8/Materials | Core integrity fell below 20% 690 | -8/Materials | Destroyed by G-47 Trooper with Particle Gun Last Messages --------------- 00640_ Penetrated by Slug. 00640_ Imp. Ion Engine destroyed. 00641_ U-05 Engineer lays Concrete. 00642_ Acquired Assault Cannon. 00643_ U-05 Engineer lays Concrete. 00644_ G-47 Trooper destroyed. 00644_ U-05 Engineer lays Concrete. 00646_ U-05 Engineer builds a Wall. 00646_ Penetrated by Slug. 00650_ U-05 Engineer lays Concrete. 00652_ H-55 Commando Lgt. Nuclear Core blasted off. 00652_ U-05 Engineer lays Concrete. 00654_ Assault Cannon destroyed. 00654_ U-05 Engineer lays Concrete. 00655_ The unstable cave ceiling collapses. 00655_ U-05 Engineer builds a Wall. 00660_ Penetrated by Slug. 00661_ U-05 Engineer builds a Wall. 00678_ Imp. Heat Sink destroyed. Map ----- +----------------------------------------------------+ | ?????????????????????????????????????????????????? | | ?????????????????????????????????????????????????? | | ?????????????????????????????????????????????????? | | ?????????????????????????????????????????????????? | | ?????????????????????????????????????????????????? | | ?????????????????????????????????????????????????? | | ?????????????????????????????????????????????????? | | ?????????????????????????????????????????????????? | | ?????????????????????????????????????????????????? | | ????????????????????????????????????????????????#? | | ??????????????????????????????????????????????? #? | | ?????????????????????????????????????????????? #? | | ?????????????????????????????????????????????? #? | | ???????????????????????????????????????####### ## | | ??????????????????##??????????????????## ? | | ??????????????????# ######???????????? | | ??????????????????# Y ]] ????H???????? """ | | ?????????????#????# ]/ #???????????? """" | | ????????????## ???# ga #????????????# """ | | ????????????? ?# #????????????# | | ????????????# # #????????????# ^ | | ??????????????? /k !g [ #????????????# """ | | ??????????????????# ############## """" | | ??????????????????# # """ | | ??????????????????# "Y" + | | ??????????????????# """ @# | | ??????????????????# ################"####### | | ??????????????????###+#####??????????# T #?? | | ????????????????????????????????????## #?? | | ????????????????????????????????????# """ ### | | ????????????????????????????????????## === """ # | | ?????????????????????????????????????# === """ # | | ?????????????????????????????????????# == # | | ??????????????????????????????????? / # | | ??????????????????????????????????#### # | | ?????????????????????????????????????##+########= | | ??????????????????????????????????????# ######## | | ??????????????????????????????????????# ## """ # | | ??????????????????????????????????????# ## """ # | | ??????????????????????????????????????# ## """ ### | | ??????????????????????????????????????# ## # # | | ??????????????????????????????????????# ## [ ] # | | ??????????????????????????????????????# ## | | ??????????????????????????????????????# # | | ??????????????????????????????????##### # % | | ?????????????????????????????????## # | | ?????????????????????????????????# # # | | ?????????????????????????????????# # # | | ?????????????????????????????????# ] # | | ?????????????????????????????????# !%# | +----------------------------------------------------+ Best States ------------- Heat Dissipation 31 Energy Generation 15 Energy Capacity 275 Matter Stores 300 Matter Capacity 300 Sight Range 16 Terrain Scan Range 14 Terrain Scan Density 10 Armor Coverage 225 Evasion (%) 55 Recoil Reduction 4 Item Schematics ----------------- None Robot Schematics ------------------ None Fabricated ------------ Nothing Repaired ---------- Nothing Studied --------- None Alien Tech Used ----------------- None Achievements -------------- I Have A Map? Challenges ------------ None Game ------ Seed SixForceLoader Manual? 0 Play Time 00:10:47 Cumulative 5.6 hours Start 2025.12.27 @ 14:04:45 End 2025.12.27 @ 14:14:19 Sessions 1 Manual Loads 0 Difficulty Rogue Special Mode None Game No. 21 Rogue 21 Adventurer 0 Explorer 0 Win Type - Total 0 Types 0/0/0/0/0/0/0/0/0/0 Lore% 4 Gallery% 9 Achievement% 8 Wizard Run 0 Options --------- Layout 1 ASCII 0 Keyboard 1 Movement Vi Keybinds 0 Fullscreen 1 Font 24/Smallcaps Map View 50x35 Zoom Use 0% Tactical HUD 1 Map Filters NONE Filters NONE Steam 1 RUN: ae2e8d9f-d3eb-47a6-8bfc-875f6f3ef369